[Event "Kragero Resort International 2022"]
[Site "Kragero"]
[Date "2022.02.25"]
[Round "6.20"]
[White "Osmak, Yuliia"]
[Black "Thanke, Bror"]
[Result "1-0"]
[ECO "A28"]
[WhiteElo "2432"]
[BlackElo "2143"]
[Annotator "ChessBase"]
[PlyCount "121"]
[EventDate "2022.02.23"]
[EventType "swiss"]
[EventCountry "NOR"]
[SourceTitle "playchess.com"]
[Source "ChessBase"]
[SourceQuality "1"]
[TimeControl "5400+30"]

1. c4 {[%emt 0:02:10]} Nf6 {[%emt 0:00:26]} 2. Nc3 {[%emt 0:00:18]} e5 {[%emt 0:00:50]} 3. Nf3 {[%emt 0:00:11]} Nc6 {[%emt 0:00:31]} 4. e4 {[%emt 0:00:13]} d6 {[%emt 0:03:21]} 5. d4 {[%emt 0:06:21]} Bg4 {[%emt 0:02:01]} 6. d5 {[%emt 0:00:40]} Nd4 {[%emt 0:03:25]} 7. Be3 {[%emt 0:00:15]} Nxf3+ {[%emt 0:01:18]} 8. gxf3 {[%emt 0:00:03]} Bd7 {[%emt 0:02:30]} 9. h4 {[%emt 0:01:51]} Nh5 {[%emt 0:01:39]} 10. Qb3 {[%emt 0:02:35]} b6 {[%emt 0:05:26]} 11. Bh3 {[%emt 0:01:26]} Bxh3 {[%emt 0:03:07]} 12. Rxh3 {[%emt 0:07:07]} Be7 {[%emt 0:01:14]} 13. Qb5+ {[%emt 0:00:33]} Kf8 {[%emt 0:02:15]} 14. O-O-O {[%emt 0:04:04]} a6 {[%emt 0:02:40]} 15. Qc6 {[%emt 0:02:26]} Rb8 {[%emt 0:00:33]} 16. Kb1 {[%emt 0:01:34]} h6 {[%emt 0:01:13]} 17. Ne2 {[%emt 0:03:37]} Bf6 {[%emt 0:12:39]} 18. Rh2 {[%emt 0:18:38]} g6 {[%emt 0:01:29]} 19. Ng3 {[%emt 0:05:08]} Nf4 {[%emt 0:05:32]} 20. h5 {[%emt 0:00:26]} Bg5 {[%emt 0:01:22]} 21. Rg1 {[%emt 0:00:59]} Kg7 {[%emt 0:00:57]} 22. Bxf4 {[%emt 0:02:40]} exf4 {[%emt 0:01:28]} 23. Ne2 {[%emt 0:07:26]} b5 {[%emt 0:09:47]} 24. c5 {[%emt 0:03:01]} dxc5 {[%emt 0:00:48]} 25. Qxc5 {[%emt 0:01:02]} Qd6 {[%emt 0:06:26]} 26. Qxd6 {[%emt 0:06:30]} cxd6 {[%emt 0:00:07]} 27. hxg6 {[%emt 0:00:07]} fxg6 {[%emt 0:02:11]} 28. Rhg2 {[%emt 0:00:36]} Kf7 {[%emt 0:02:22]} 29. Rg4 {[%emt 0:01:38]} Ke7 {[%emt 0:06:59]} 30. Nd4 {[%emt 0:02:21]} Rbg8 {[%emt 0:00:41]} 31. Ne6 {[%emt 0:00:24]} Kf6 {[%emt 0:01:37]} 32. Nxf4 {[%emt 0:01:07]} Bxf4 {[%emt 0:01:10]} 33. Rxf4+ {[%emt 0:00:04]} Ke5 {[%emt 0:00:16]} 34. Rf7 {[%emt 0:04:37]} g5 {[%emt 0:06:26]} 35. Rf5+ {[%emt 0:02:27]} Kd4 {[%emt 0:00:10]} 36. Rf6 {[%emt 0:01:44]} Rf8 {[%emt 0:02:36]} 37. Rd1+ {[%emt 0:02:36]} Kc5 {[%emt 0:00:49]} 38. b4+ {[%emt 0:05:27]} Kxb4 {[%emt 0:03:23]} 39. Rxd6 {[%emt 0:00:04]} Rxf3 {[%emt 0:02:29]} 40. Rc6 {[%emt 0:01:38]} Rxf2 {[%emt 0:00:54]} 41. d6 {[%emt 0:00:07]} Rd8 {[%emt 0:05:02]} 42. d7 {[%emt 0:01:35]} Rf7 {[%emt 0:00:14]} 43. Rc7 {[%emt 0:00:30]} Re7 {[%emt 0:01:04]} 44. e5 {[%emt 0:00:14]} Rxe5 {[%emt 0:00:29]} 45. Rc8 {[%emt 0:00:04]} Rxd7 {[%emt 0:00:26]} 46. Rxd7 {[%emt 0:00:03]} h5 {[%emt 0:00:18]} 47. Rh7 {[%emt 0:00:29]} g4 {[%emt 0:00:26]} 48. Rg7 {[%emt 0:00:42]} Re3 {[%emt 0:00:45]} 49. Rg5 {[%emt 0:01:04]} Rh3 {[%emt 0:00:23]} 50. Rh8 {[%emt 0:00:58]} Rh1+ {[%emt 0:00:08]} 51. Kc2 {[%emt 0:00:30]} Rh2+ {[%emt 0:00:11]} 52. Kd3 {[%emt 0:00:04]} Rxa2 {[%emt 0:00:10]} 53. Rhxh5 {[%emt 0:00:17]} Ra3+ {[%emt 0:00:10]} 54. Kc2 {[%emt 0:00:32]} g3 {[%emt 0:00:14]} 55. Rh4+ {[%emt 0:00:38]} Ka5 {[%emt 0:00:11]} 56. Rhg4 {[%emt 0:00:12]} Rf3 {[%emt 0:01:01]} 57. Rxg3 {[%emt 0:00:10]} Rf2+ {[%emt 0:00:14]} 58. Kb3 {[%emt 0:00:16]} Rf1 {[%emt 0:00:49]} 59. Rg6 {[%emt 0:00:16]} Rb1+ {[%emt 0:00:40]} 60. Ka2 {[%emt 0:00:15]} Rf1 {[%emt 0:00:26]} 61. Ra3+ {[%emt 0:00:12]} 1-0

[Event "Kragero Resort International 2022"]
[Site "Kragero"]
[Date "2022.02.25"]
[Round "6.21"]
[White "Aulin-Jansson, Joran"]
[Black "Mikalsen, Erlend"]
[Result "0-1"]
[ECO "B23"]
[WhiteElo "2214"]
[BlackElo "2368"]
[Annotator "ChessBase"]
[PlyCount "72"]
[EventDate "2022.02.23"]
[EventType "swiss"]
[EventCountry "NOR"]
[SourceTitle "playchess.com"]
[Source "ChessBase"]
[SourceQuality "1"]
[TimeControl "5400+30"]

1. e4 {[%emt 0:00:06]} c5 {[%emt 0:02:11]} 2. Nc3 {[%emt 0:00:06]} Nc6 {[%emt 0:00:03]} 3. f4 {[%emt 0:00:07]} e6 {[%emt 0:00:03]} 4. Nf3 {[%emt 0:00:06]} d5 {[%emt 0:00:06]} 5. Bb5 {[%emt 0:00:04]} Nge7 {[%emt 0:00:05]} 6. d3 {[%emt 0:00:11]} d4 {[%emt 0:00:05]} 7. Bxc6+ {[%emt 0:00:08]} Nxc6 {[%emt 0:00:04]} 8. Ne2 {[%emt 0:00:09]} Bd6 {[%emt 0:00:09]} 9. O-O {[%emt 0:00:07]} f5 {[%emt 0:00:11]} 10. c3 {[%emt 0:01:47]} dxc3 {[%emt 0:01:07]} 11. bxc3 {[%emt 0:00:21]} O-O {[%emt 0:01:05]} 12. Be3 {[%emt 0:01:10]} b6 {[%emt 0:01:23]} 13. h3 {[%emt 0:09:10]} Qd7 {[%emt 0:01:38]} 14. g4 {[%emt 0:00:45]} Bb7 {[%emt 0:00:31]} 15. gxf5 {[%emt 0:06:16]} exf5 {[%emt 0:00:06]} 16. e5 {[%emt 0:00:08]} Be7 {[%emt 0:01:19]} 17. d4 {[%emt 0:00:22]} Qd5 {[%emt 0:00:49]} 18. Qb3 {[%emt 0:03:00]} c4 {[%emt 0:00:04]} 19. Qc2 {[%emt 0:00:07]} b5 {[%emt 0:05:19]} 20. Kh2 {[%emt 0:04:51]} a5 {[%emt 0:00:11]} 21. Rf2 {[%emt 0:02:17]} b4 {[%emt 0:00:39]} 22. Nd2 {[%emt 0:05:07]} Rac8 {[%emt 0:02:23]} 23. Rg1 {[%emt 0:03:26]} Nd8 {[%emt 0:01:51]} 24. Ng3 {[%emt 0:05:02]} Qe6 {[%emt 0:00:05]} 25. Nf3 {[%emt 0:01:07]} Bd5 {[%emt 0:00:49]} 26. Nh5 {[%emt 0:06:23]} g6 {[%emt 0:00:53]} 27. Ng5 {[%emt 0:00:46]} Qc6 {[%emt 0:00:16]} 28. Qe2 {[%emt 0:01:43]} b3 {[%emt 0:03:03]} 29. h4 {[%emt 0:01:44]} Rb8 {[%emt 0:00:48]} 30. Ng3 {[%emt 0:00:33]} a4 {[%emt 0:11:01]} 31. h5 {[%emt 0:01:03]} a3 {[%emt 0:00:30]} 32. Qf1 {[%emt 0:10:30]} Bxg5 {[%emt 0:00:55]} 33. fxg5 {[%emt 0:00:09]} Ne6 {[%emt 0:00:36]} 34. hxg6 {[%emt 0:08:01]} hxg6 {[%emt 0:00:25]} 35. Qb1 {[%emt 0:00:09]} Qd7 {[%emt 0:02:06]} 36. Ne2 {[%emt 0:00:52]} Be4 {[%emt 0:00:04]} 0-1

[Event "Kragero Resort International 2022"]
[Site "Kragero"]
[Date "2022.02.25"]
[Round "6.23"]
[White "Stanford, Maxim Barth"]
[Black "Westrum, Kim Roger Hansen"]
[Result "1-0"]
[ECO "A88"]
[WhiteElo "2339"]
[BlackElo "1967"]
[Annotator "NA"]
[PlyCount "59"]
[EventDate "2022.02.23"]
[EventType "swiss"]
[EventCountry "NOR"]
[SourceTitle "playchess.com"]
[Source "ChessBase"]
[SourceQuality "1"]
[TimeControl "5400+30"]

1. Nf3 {[%emt 0:08:15]} f5 {[%emt 0:01:22]} 2. c4 {[%emt 0:00:49]} Nf6 {[%emt 0:00:19]} 3. Nc3 {[%emt 0:00:26]} d6 {[%emt 0:01:07]} 4. d4 {[%emt 0:00:25]} g6 {[%emt 0:00:16]} 5. g3 {[%emt 0:00:51]} Bg7 {[%emt 0:00:13]} 6. Bg2 {[%emt 0:00:09]} O-O {[%emt 0:00:15]} 7. O-O {[%emt 0:00:28]} c6 {[%emt 0:00:10]} 8. Re1 {[%emt 0:02:02]} Na6 {[%emt 0:01:54]} 9. Rb1 {[%emt 0:02:59]} Qe8 {[%emt 0:04:49]} 10. b4 {[%emt 0:03:44]} b5 {[%emt 0:05:41]} 11. cxb5 {[%emt 0:04:10]} cxb5 {[%emt 0:00:10]} 12. Ng5 {[%emt 0:03:17]} Rb8 {[%emt 0:02:16]} 13. Qb3+ {[%emt 0:02:04]} e6 {[%emt 0:06:28]} 14. d5 {[%emt 0:04:21]} e5 {[%emt 0:01:36]} 15. Ne6 {[%emt 0:02:06]} Bxe6 {[%emt 0:04:52]} 16. dxe6 {[%emt 0:00:06]} Nc7 {[%emt 0:00:20]} 17. Rd1 {[%emt 0:04:13]} Qxe6 {[%emt 0:06:22]} 18. Qxe6+ {[%emt 0:01:26]} Nxe6 {[%emt 0:00:10]} 19. Rxd6 {[%emt 0:00:38]} Nc7 {[%emt 0:28:36]} 20. Rc6 {[%emt 0:06:50]} Rf7 {[%emt 0:00:15]} 21. Be3 {[%emt 0:02:02]} a6 {[%emt 0:00:26]} 22. Bb6 {[%emt 0:01:19]} Na8 {[%emt 0:07:51]} 23. Ba5 {[%emt 0:01:06]} e4 {[%emt 0:01:35]} 24. Rc1 {[%emt 0:05:22]} Rd7 {[%emt 0:04:35]} 25. f3 {[%emt 0:02:17]} e3 {[%emt 0:01:17]} 26. f4 {[%emt 0:06:59]} Rd2 {[%emt 0:10:21]} 27. Bf3 {[%emt 0:04:18]} Ne4 {[%emt 0:01:22]} 28. Bxe4 {[%emt 0:04:04]} fxe4 {[%emt 0:00:10]} 29. Kf1 {[%emt 0:00:16]} Bxc3 {[%emt 0:01:04]} 30. R1xc3 {[%emt 0:00:34]} 1-0

[Event "Kragero Resort International 2022"]
[Site "Kragero"]
[Date "2022.02.25"]
[Round "6.24"]
[White "Skotheim, Andreas"]
[Black "Hirneise, Jens"]
[Result "1/2-1/2"]
[ECO "B52"]
[WhiteElo "2181"]
[BlackElo "2327"]
[Annotator "NA"]
[PlyCount "54"]
[EventDate "2022.02.23"]
[EventType "swiss"]
[EventCountry "NOR"]
[SourceTitle "playchess.com"]
[Source "ChessBase"]
[SourceQuality "1"]
[TimeControl "5400+30"]

1. e4 {[%emt 0:00:16]} c5 {[%emt 0:00:04]} 2. Nf3 {[%emt 0:00:15]} d6 {[%emt 0:00:04]} 3. Bb5+ {[%emt 0:00:34]} Bd7 {[%emt 0:00:06]} 4. Bxd7+ {[%emt 0:00:10]} Qxd7 {[%emt 0:00:18]} 5. c4 {[%emt 0:00:14]} e5 {[%emt 0:00:04]} 6. Nc3 {[%emt 0:00:58]} Nc6 {[%emt 0:00:05]} 7. d3 {[%emt 0:01:11]} g6 {[%emt 0:00:21]} 8. Nd5 {[%emt 0:05:25]} Nce7 {[%emt 0:03:12]} 9. Bd2 {[%emt 0:08:41]} Nxd5 {[%emt 0:04:40]} 10. cxd5 {[%emt 0:06:08]} Nf6 {[%emt 0:11:24]} 11. O-O {[%emt 0:06:03]} Be7 {[%emt 0:02:05]} 12. b4 {[%emt 0:11:42]} b6 {[%emt 0:02:02]} 13. bxc5 {[%emt 0:03:19]} bxc5 {[%emt 0:00:05]} 14. Qb3 {[%emt 0:08:29]} O-O {[%emt 0:00:42]} 15. Rab1 {[%emt 0:00:46]} Rfc8 {[%emt 0:00:44]} 16. Qc4 {[%emt 0:03:41]} Rcb8 {[%emt 0:05:28]} 17. h3 {[%emt 0:08:59]} Rb7 {[%emt 0:04:28]} 18. Rb3 {[%emt 0:01:31]} Bd8 {[%emt 0:05:44]} 19. Rfb1 {[%emt 0:02:54]} Rb6 {[%emt 0:02:07]} 20. Be3 {[%emt 0:02:39]} Rc8 {[%emt 0:03:44]} 21. Nd2 {[%emt 0:01:48]} Bc7 {[%emt 0:07:28]} 22. f4 {[%emt 0:06:16]} exf4 {[%emt 0:02:01]} 23. Bxf4 {[%emt 0:00:08]} Nh5 {[%emt 0:00:34]} 24. Bh2 {[%emt 0:00:55]} Rcb8 {[%emt 0:07:00]} 25. Qc2 {[%emt 0:03:07]} Re8 {[%emt 0:06:34]} 26. Nc4 {[%emt 0:01:19]} Rxb3 {[%emt 0:01:33]} 27. Qxb3 {[%emt 0:01:11]} f5 {[%emt 0:08:17]} 1/2-1/2

[Event "Kragero Resort International 2022"]
[Site "Kragero"]
[Date "2022.02.25"]
[Round "6.25"]
[White "Ptacnikova, Lenka"]
[Black "Sjoberg, Isak"]
[Result "0-1"]
[ECO "B30"]
[WhiteElo "2173"]
[BlackElo "2322"]
[Annotator "NA"]
[PlyCount "130"]
[EventDate "2022.02.23"]
[EventType "swiss"]
[EventCountry "NOR"]
[SourceTitle "playchess.com"]
[Source "ChessBase"]
[SourceQuality "1"]
[TimeControl "5400+30"]

1. e4 {[%emt 0:00:02]} c5 {[%emt 0:01:15]} 2. Nc3 {[%emt 0:00:08]} Nc6 {[%emt 0:01:08]} 3. Nf3 {[%emt 0:01:41]} e5 {[%emt 0:09:27]} 4. Bc4 {[%emt 0:02:16]} d6 {[%emt 0:00:07]} 5. d3 {[%emt 0:00:31]} Be7 {[%emt 0:00:27]} 6. a4 {[%emt 0:05:04]} Nf6 {[%emt 0:04:40]} 7. O-O {[%emt 0:02:14]} O-O {[%emt 0:00:18]} 8. h3 {[%emt 0:01:29]} Be6 {[%emt 0:06:45]} 9. Bxe6 {[%emt 0:11:05]} fxe6 {[%emt 0:00:27]} 10. Ne2 {[%emt 0:01:44]} Nh5 {[%emt 0:07:13]} 11. c3 {[%emt 0:02:13]} d5 {[%emt 0:14:42]} 12. Qb3 {[%emt 0:07:01]} Qd7 {[%emt 0:06:12]} 13. Be3 {[%emt 0:05:53]} Kh8 {[%emt 0:07:21]} 14. Rad1 {[%emt 0:03:42]} d4 {[%emt 0:00:39]} 15. cxd4 {[%emt 0:01:12]} exd4 {[%emt 0:02:00]} 16. Bd2 {[%emt 0:03:11]} Bd6 {[%emt 0:03:07]} 17. Nh2 {[%emt 0:00:46]} Qc7 {[%emt 0:06:04]} 18. Ng4 {[%emt 0:00:56]} Rae8 {[%emt 0:00:22]} 19. f4 {[%emt 0:04:38]} e5 {[%emt 0:05:33]} 20. f5 {[%emt 0:05:49]} Qf7 {[%emt 0:00:58]} 21. Qxf7 {[%emt 0:02:24]} Rxf7 {[%emt 0:00:06]} 22. Nh2 {[%emt 0:01:21]} Rb8 {[%emt 0:03:21]} 23. b3 {[%emt 0:05:39]} b5 {[%emt 0:02:06]} 24. axb5 {[%emt 0:02:35]} Rxb5 {[%emt 0:00:05]} 25. Nc1 {[%emt 0:00:46]} Bc7 {[%emt 0:02:48]} 26. g4 {[%emt 0:03:04]} Nf6 {[%emt 0:00:50]} 27. Nf3 {[%emt 0:00:30]} Re7 {[%emt 0:03:06]} 28. Be1 {[%emt 0:03:14]} Re8 {[%emt 0:01:43]} 29. Rf2 {[%emt 0:01:44]} Ba5 {[%emt 0:00:23]} 30. Ra2 {[%emt 0:01:37]} Bxe1 {[%emt 0:01:49]} 31. Rxe1 {[%emt 0:00:21]} Na5 {[%emt 0:00:06]} 32. Nd2 {[%emt 0:00:26]} Reb8 {[%emt 0:01:39]} 33. Kf2 {[%emt 0:01:17]} Ne8 {[%emt 0:00:45]} 34. g5 {[%emt 0:15:41]} Nd6 {[%emt 0:00:36]} 35. Kg3 {[%emt 0:00:21]} Nc6 {[%emt 0:01:46]} 36. Nf3 {[%emt 0:01:47]} Nf7 {[%emt 0:04:20]} 37. h4 {[%emt 0:00:53]} R8b6 {[%emt 0:00:13]} 38. Kg4 {[%emt 0:01:03]} Ra5 {[%emt 0:00:27]} 39. Rxa5 {[%emt 0:01:58]} Nxa5 {[%emt 0:00:02]} 40. Nd2 {[%emt 0:00:10]} Kg8 {[%emt 0:00:56]} 41. Rf1 {[%emt 0:00:23]} a6 {[%emt 0:01:13]} 42. h5 {[%emt 0:00:50]} h6 {[%emt 0:00:25]} 43. g6 {[%emt 0:00:25]} Nd8 {[%emt 0:01:03]} 44. Rf2 {[%emt 0:00:41]} Kf8 {[%emt 0:00:33]} 45. Nf3 {[%emt 0:01:02]} Ndc6 {[%emt 0:00:33]} 46. Ra2 {[%emt 0:00:45]} Ke7 {[%emt 0:00:25]} 47. Ra3 {[%emt 0:00:29]} Kf6 {[%emt 0:00:11]} 48. Nd2 {[%emt 0:00:16]} Rb5 {[%emt 0:00:39]} 49. Nc4 {[%emt 0:00:26]} Nxc4 {[%emt 0:00:41]} 50. bxc4 {[%emt 0:00:41]} Ra5 {[%emt 0:00:02]} 51. Rxa5 {[%emt 0:00:50]} Nxa5 {[%emt 0:00:02]} 52. Kh4 {[%emt 0:00:15]} Nb7 {[%emt 0:00:38]} 53. Ne2 {[%emt 0:00:53]} a5 {[%emt 0:00:21]} 54. Ng3 {[%emt 0:00:29]} a4 {[%emt 0:00:21]} 55. Nh1 {[%emt 0:00:08]} a3 {[%emt 0:00:14]} 56. Nf2 {[%emt 0:00:02]} a2 {[%emt 0:00:50]} 57. Ng4+ {[%emt 0:00:03]} Ke7 {[%emt 0:00:03]} 58. f6+ {[%emt 0:01:09]} gxf6 {[%emt 0:00:43]} 59. Nxh6 {[%emt 0:00:46]} a1=Q {[%emt 0:00:24]} 60. Nf5+ {[%emt 0:00:09]} Ke8 {[%emt 0:01:09]} 61. h6 {[%emt 0:00:34]} Qh1+ {[%emt 0:00:33]} 62. Kg4 {[%emt 0:00:12]} Qg1+ {[%emt 0:00:32]} 63. Ng3 {[%emt 0:00:07]} Kf8 {[%emt 0:00:34]} 64. g7+ {[%emt 0:01:56]} Kg8 {[%emt 0:00:05]} 65. Kh5 {[%emt 0:00:26]} Qh2+ {[%emt 0:00:34]} 0-1

[Event "Kragero Resort International 2022"]
[Site "Kragero"]
[Date "2022.02.25"]
[Round "6.26"]
[White "Johannsson, Birkir Isak"]
[Black "Van Dael, Siem"]
[Result "0-1"]
[ECO "E90"]
[WhiteElo "2103"]
[BlackElo "2303"]
[Annotator "NA"]
[PlyCount "110"]
[EventDate "2022.02.23"]
[EventType "swiss"]
[EventCountry "NOR"]
[SourceTitle "playchess.com"]
[Source "ChessBase"]
[SourceQuality "1"]
[TimeControl "5400+30"]

1. c4 {[%emt 0:00:04]} Nf6 {[%emt 0:01:48]} 2. Nc3 {[%emt 0:00:08]} g6 {[%emt 0:00:04]} 3. e4 {[%emt 0:00:07]} d6 {[%emt 0:00:06]} 4. d4 {[%emt 0:00:05]} Bg7 {[%emt 0:00:04]} 5. h3 {[%emt 0:00:07]} O-O {[%emt 0:00:54]} 6. Be3 {[%emt 0:00:13]} c5 {[%emt 0:01:15]} 7. Nf3 {[%emt 0:00:17]} cxd4 {[%emt 0:01:44]} 8. Nxd4 {[%emt 0:00:11]} b6 {[%emt 0:00:45]} 9. Qd2 {[%emt 0:00:18]} Bb7 {[%emt 0:00:16]} 10. f3 {[%emt 0:00:08]} e6 {[%emt 0:02:30]} 11. O-O-O {[%emt 0:03:48]} a6 {[%emt 0:02:03]} 12. Bh6 {[%emt 0:01:55]} Bxh6 {[%emt 0:04:38]} 13. Qxh6 {[%emt 0:00:11]} Nbd7 {[%emt 0:02:02]} 14. h4 {[%emt 0:18:54]} Nh5 {[%emt 0:04:28]} 15. g4 {[%emt 0:06:12]} Ng3 {[%emt 0:00:11]} 16. Rh3 {[%emt 0:21:46]} Nxf1 {[%emt 0:00:08]} 17. Rxf1 {[%emt 0:00:04]} Qf6 {[%emt 0:02:35]} 18. Rd1 {[%emt 0:06:17]} Rac8 {[%emt 0:04:12]} 19. h5 {[%emt 0:01:52]} g5 {[%emt 0:03:24]} 20. Qxf6 {[%emt 0:01:31]} Nxf6 {[%emt 0:00:06]} 21. Nc2 {[%emt 0:03:15]} Rfd8 {[%emt 0:00:19]} 22. Ne3 {[%emt 0:00:25]} Kf8 {[%emt 0:00:22]} 23. Rh2 {[%emt 0:02:17]} Ke7 {[%emt 0:00:24]} 24. Rhd2 {[%emt 0:00:34]} Ng8 {[%emt 0:04:51]} 25. Kb1 {[%emt 0:06:21]} f6 {[%emt 0:00:40]} 26. Ne2 {[%emt 0:00:10]} Nh6 {[%emt 0:00:26]} 27. Nc1 {[%emt 0:00:38]} Nf7 {[%emt 0:00:27]} 28. Nd3 {[%emt 0:00:33]} Rc7 {[%emt 0:02:31]} 29. b3 {[%emt 0:01:02]} Rf8 {[%emt 0:02:51]} 30. Kb2 {[%emt 0:00:29]} Rfc8 {[%emt 0:00:47]} 31. Rc1 {[%emt 0:16:33]} Bc6 {[%emt 0:02:51]} 32. Rdc2 {[%emt 0:00:38]} Bb7 {[%emt 0:01:08]} 33. Rd2 {[%emt 0:00:08]} Nd8 {[%emt 0:00:23]} 34. Nc2 {[%emt 0:01:48]} Nc6 {[%emt 0:01:23]} 35. Rcd1 {[%emt 0:00:18]} Rd8 {[%emt 0:04:14]} 36. Re1 {[%emt 0:01:19]} b5 {[%emt 0:03:32]} 37. cxb5 {[%emt 0:00:51]} axb5 {[%emt 0:00:06]} 38. Red1 {[%emt 0:00:40]} Rdc8 {[%emt 0:11:34]} 39. Ndb4 {[%emt 0:01:16]} Ne5 {[%emt 0:01:49]} 40. Nd4 {[%emt 0:00:45]} Rc5 {[%emt 0:00:35]} 41. a3 {[%emt 0:01:04]} Ba8 {[%emt 0:06:42]} 42. Kb1 {[%emt 0:02:05]} Nxf3 {[%emt 0:02:44]} 43. Nxf3 {[%emt 0:00:37]} Bxe4+ {[%emt 0:00:05]} 44. Rd3 {[%emt 0:01:12]} Bxd3+ {[%emt 0:00:18]} 45. Rxd3 {[%emt 0:00:21]} Rc1+ {[%emt 0:00:29]} 46. Kb2 {[%emt 0:00:07]} Rf1 {[%emt 0:02:19]} 47. Re3 {[%emt 0:00:13]} Kd7 {[%emt 0:00:57]} 48. Nd4 {[%emt 0:00:10]} Rf4 {[%emt 0:00:42]} 49. Nxb5 {[%emt 0:01:00]} Rxg4 {[%emt 0:00:28]} 50. Nd3 {[%emt 0:00:28]} Rg2+ {[%emt 0:00:13]} 51. Kb1 {[%emt 0:00:13]} f5 {[%emt 0:00:26]} 52. a4 {[%emt 0:00:13]} f4 {[%emt 0:00:12]} 53. Re1 {[%emt 0:00:04]} Rd2 {[%emt 0:00:21]} 54. Nb2 {[%emt 0:00:30]} d5 {[%emt 0:00:38]} 55. a5 {[%emt 0:00:06]} Rc5 {[%emt 0:00:39]} 0-1

[Event "Kragero Resort International 2022"]
[Site "Kragero"]
[Date "2022.02.25"]
[Round "6.27"]
[White "Blokhin, Sofia"]
[Black "Grave, Jacob Templen"]
[Result "1-0"]
[ECO "B11"]
[WhiteElo "2059"]
[BlackElo "2267"]
[Annotator "NA"]
[PlyCount "69"]
[EventDate "2022.02.23"]
[EventType "swiss"]
[EventCountry "NOR"]
[SourceTitle "playchess.com"]
[Source "ChessBase"]
[SourceQuality "1"]
[TimeControl "5400+30"]

1. e4 {[%emt 0:00:03]} c6 {[%emt 0:00:06]} 2. Nf3 {[%emt 0:00:05]} d5 {[%emt 0:00:06]} 3. Nc3 {[%emt 0:00:05]} Bg4 {[%emt 0:00:14]} 4. d4 {[%emt 0:00:18]} e6 {[%emt 0:00:30]} 5. Bd3 {[%emt 0:00:24]} Nf6 {[%emt 0:00:15]} 6. O-O {[%emt 0:00:41]} Be7 {[%emt 0:00:45]} 7. h3 {[%emt 0:00:30]} Bh5 {[%emt 0:03:21]} 8. Be3 {[%emt 0:09:11]} O-O {[%emt 0:00:58]} 9. e5 {[%emt 0:02:09]} Nfd7 {[%emt 0:01:05]} 10. Ne2 {[%emt 0:02:52]} c5 {[%emt 0:04:28]} 11. c3 {[%emt 0:01:21]} Nc6 {[%emt 0:05:19]} 12. Nf4 {[%emt 0:03:31]} Bg6 {[%emt 0:00:20]} 13. Nxg6 {[%emt 0:00:49]} hxg6 {[%emt 0:03:29]} 14. g3 {[%emt 0:02:02]} cxd4 {[%emt 0:05:01]} 15. cxd4 {[%emt 0:00:15]} Nb4 {[%emt 0:01:05]} 16. Bb1 {[%emt 0:01:07]} Rc8 {[%emt 0:00:31]} 17. a3 {[%emt 0:01:37]} Nc6 {[%emt 0:00:21]} 18. h4 {[%emt 0:01:25]} Na5 {[%emt 0:22:36]} 19. Qd3 {[%emt 0:03:38]} Re8 {[%emt 0:06:32]} 20. h5 {[%emt 0:03:05]} Nf8 {[%emt 0:00:08]} 21. hxg6 {[%emt 0:00:18]} fxg6 {[%emt 0:02:26]} 22. Kg2 {[%emt 0:12:30]} Qc7 {[%emt 0:07:51]} 23. b4 {[%emt 0:04:21]} Nc4 {[%emt 0:00:34]} 24. Bc1 {[%emt 0:10:50]} a5 {[%emt 0:02:48]} 25. b5 {[%emt 0:08:10]} a4 {[%emt 0:03:11]} 26. Rh1 {[%emt 0:01:56]} Na5 {[%emt 0:03:45]} 27. Ra2 {[%emt 0:05:36]} Qc4 {[%emt 0:02:25]} 28. Qe3 {[%emt 0:01:54]} Qxb5 {[%emt 0:01:32]} 29. Bd3 {[%emt 0:04:00]} Qd7 {[%emt 0:01:38]} 30. Qf4 {[%emt 0:01:39]} Rc3 {[%emt 0:03:34]} 31. Bb1 {[%emt 0:03:30]} Nc4 {[%emt 0:00:54]} 32. Qg4 {[%emt 0:02:04]} Rc8 {[%emt 0:06:26]} 33. Bxg6 {[%emt 0:01:48]} Rxc1 {[%emt 0:01:48]} 34. Rh8+ {[%emt 0:00:14]} Kxh8 {[%emt 0:00:21]} 35. Qh5+ {[%emt 0:00:05]} 1-0

[Event "Kragero Resort International 2022"]
[Site "Kragero"]
[Date "2022.02.25"]
[Round "6.28"]
[White "Doluhanova, Evgeniya"]
[Black "Strand, Vetle Bjorge"]
[Result "1-0"]
[ECO "B11"]
[WhiteElo "2255"]
[BlackElo "1927"]
[Annotator "NA"]
[PlyCount "93"]
[EventDate "2022.02.23"]
[EventType "swiss"]
[EventCountry "NOR"]
[SourceTitle "playchess.com"]
[Source "ChessBase"]
[SourceQuality "1"]
[TimeControl "5400+30"]

1. e4 {[%emt 0:04:04]} c6 {[%emt 0:00:03]} 2. d3 {[%emt 0:00:06]} d5 {[%emt 0:00:07]} 3. Nc3 {[%emt 0:00:15]} dxe4 {[%emt 0:03:01]} 4. dxe4 {[%emt 0:06:23]} Qxd1+ {[%emt 0:00:19]} 5. Nxd1 {[%emt 0:00:06]} e5 {[%emt 0:00:26]} 6. Nf3 {[%emt 0:00:10]} Bd6 {[%emt 0:00:36]} 7. Ne3 {[%emt 0:01:12]} Nf6 {[%emt 0:04:35]} 8. Nc4 {[%emt 0:01:12]} Bc7 {[%emt 0:00:20]} 9. Ncxe5 {[%emt 0:01:54]} Nxe4 {[%emt 0:01:42]} 10. Bc4 {[%emt 0:00:51]} O-O {[%emt 0:00:54]} 11. O-O {[%emt 0:00:33]} Nd7 {[%emt 0:01:09]} 12. Nxd7 {[%emt 0:04:29]} Bxd7 {[%emt 0:00:02]} 13. Re1 {[%emt 0:00:29]} Rfe8 {[%emt 0:04:25]} 14. Be3 {[%emt 0:09:30]} Bb6 {[%emt 0:08:16]} 15. Bxb6 {[%emt 0:04:32]} axb6 {[%emt 0:00:01]} 16. Bxf7+ {[%emt 0:01:26]} Kxf7 {[%emt 0:00:10]} 17. Rxe4 {[%emt 0:00:04]} Rxe4 {[%emt 0:00:41]} 18. Ng5+ {[%emt 0:00:06]} Ke7 {[%emt 0:00:24]} 19. Nxe4 {[%emt 0:00:05]} Bf5 {[%emt 0:01:19]} 20. Re1 {[%emt 0:01:07]} Kf8 {[%emt 0:02:59]} 21. a3 {[%emt 0:01:12]} Rd8 {[%emt 0:03:54]} 22. Kf1 {[%emt 0:02:58]} b5 {[%emt 0:10:23]} 23. f3 {[%emt 0:13:17]} b6 {[%emt 0:03:40]} 24. Kf2 {[%emt 0:01:28]} h6 {[%emt 0:01:44]} 25. c3 {[%emt 0:03:29]} Kf7 {[%emt 0:02:50]} 26. Re2 {[%emt 0:01:17]} c5 {[%emt 0:07:31]} 27. Rd2 {[%emt 0:03:14]} Rxd2+ {[%emt 0:00:07]} 28. Nxd2 {[%emt 0:01:02]} Ke6 {[%emt 0:00:31]} 29. Ke3 {[%emt 0:00:22]} Ke5 {[%emt 0:01:44]} 30. g4 {[%emt 0:01:01]} Bh7 {[%emt 0:02:30]} 31. f4+ {[%emt 0:00:24]} Kd5 {[%emt 0:00:18]} 32. f5 {[%emt 0:01:21]} h5 {[%emt 0:04:58]} 33. h3 {[%emt 0:15:04]} hxg4 {[%emt 0:00:07]} 34. hxg4 {[%emt 0:00:00]} Ke5 {[%emt 0:00:53]} 35. c4 {[%emt 0:00:30]} b4 {[%emt 0:03:11]} 36. axb4 {[%emt 0:00:22]} cxb4 {[%emt 0:00:02]} 37. Nf3+ {[%emt 0:00:10]} Kf6 {[%emt 0:04:35]} 38. Ke4 {[%emt 0:02:45]} Bg8 {[%emt 0:00:32]} 39. g5+ {[%emt 0:00:07]} Ke7 {[%emt 0:00:43]} 40. Ne5 {[%emt 0:00:23]} b3 {[%emt 0:12:26]} 41. Kd4 {[%emt 0:00:41]} Bh7 {[%emt 0:03:12]} 42. g6 {[%emt 0:00:32]} Bg8 {[%emt 0:00:14]} 43. Ng4 {[%emt 0:00:04]} Kd6 {[%emt 0:01:18]} 44. f6 {[%emt 0:00:11]} Ke6 {[%emt 0:00:22]} 45. fxg7 {[%emt 0:00:38]} Kf5 {[%emt 0:00:30]} 46. Nh6+ {[%emt 0:00:07]} Kxg6 {[%emt 0:00:10]} 47. Nxg8 {[%emt 0:00:04]} 1-0